[Event "American Cup Blitz 2024"]
[Site "Saint Louis"]
[Date "2024.03.21"]
[Round "3.2"]
[White "Akobian, Varuzhan"]
[Black "Sevian, Samuel"]
[Result "0-1"]
[ECO "E92"]
[WhiteElo "2571"]
[BlackElo "2697"]
[Annotator "TA"]
[PlyCount "76"]
[EventDate "2024.03.21"]
[EventType "swiss"]
[EventCountry "USA"]
[SourceTitle "playchess.com"]
[Source "ChessBase"]
[SourceQuality "1"]
[TimeControl "180+2"]

{[%evp 22,76,85,89,76,60,56,54,45,40,47,46,50,58,57,54,40,45,46,68,60,53,75,-20,0,0,0,-267,25,0,-15,0,0,12,8,-158,-161,-497,-422,-428,-291,-286,-281,-394,-375,-385,-357,-425,-424,-1263,-1239,-29963,-29957,-2002,-627,-1041,-1052]} 1. d4 {[%emt 0:00:01]} Nf6 {[%emt 0:00:01]} 2. c4 {[%emt 0:00:02]} g6 {[%emt 0:00:03]} 3. Nc3 {[%emt 0:00:03]} Bg7 {[%emt 0:00:01]} 4. Nf3 {[%emt 0:00:04]} d6 {[%emt 0:00:02]} 5. h3 {[%emt 0:00:11]} O-O {[%emt 0:00:02]} 6. e4 {[%emt 0:00:03]} e5 {[%emt 0:00:05]} 7. d5 {[%emt 0:00:04]} a5 {[%emt 0:00:02]} 8. Bg5 {[%emt 0:00:11]} Na6 {[%emt 0:00:03]} 9. Be2 {[%emt 0:00:06]} h6 {[%emt 0:00:04]} 10. Be3 {[%emt 0:00:03]} Nc5 {[%emt 0:00:07]} 11. Nd2 {[%emt 0:00:03]} Nh7 {[%emt 0:00:33]} 12. g4 {[%emt 0:00:06]} Qh4 {[%emt 0:00:25]} 13. Nf3 {[%emt 0:00:26]} Qe7 {[%emt 0:00:01]} 14. Qd2 {[%emt 0:00:06]} Nf6 {[%emt 0:00:02] White is slightly better.} 15. Qc2 {[%emt 0:00:10]} (15. Bxh6 Nfxe4 16. Nxe4 Nxe4 $15) 15... Bd7 {[%emt 0:00:03]} 16. Nd2 {[%emt 0:00:14]} c6 {[%emt 0:00:00]} 17. O-O-O {[%emt 0:00:34]} Rfc8 {[%emt 0:00:01][%cal Ob7b5]} 18. Kb1 {[%emt 0:00:03]} cxd5 {[%emt 0:00:03]} 19. exd5 {[%emt 0:00:01]} a4 {[%emt 0:00:10]} 20. a3 $1 {[%emt 0:00:01]} Rab8 {[%emt 0:00:21]} 21. f3 {[%emt 0:00:07]} Qd8 {[%emt 0:00:06]} 22. Nde4 {[%emt 0:00:04]} ({Better is} 22. Rhf1 $16) 22... Nfxe4 {[%emt 0:00:09]} (22... Ncxe4 $5 23. fxe4 b5 $11) 23. fxe4 {[%emt 0:00:10]} (23. Nxe4 Nxe4 24. Qxe4 f5 $19) 23... Nb3 {[%emt 0:00:03][%cal Ob7b5]} 24. h4 $2 {[%emt 0:00:07][%mdl 8192] [#]} (24. Bd3 $11) 24... Qa5 $2 {[%emt 0:00:01]} (24... b5 $1 $19 {Hoping for ...b4.} 25. h5 g5) 25. Rhf1 {[%emt 0:00:13]} b5 {[%emt 0:00:07]} 26. cxb5 {[%emt 0:00:04]} Bxb5 {[%emt 0:00:06]} 27. Bxb5 {[%emt 0:00:03]} Rxb5 {[%emt 0:00:01]} 28. Ka2 $2 {[%emt 0:00:13]} (28. Qd3 $1 $11 Rb7 29. Na2) 28... Nd4 $36 {[%emt 0:00:06][%mdl 2048] Black has strong initiative.} 29. Qf2 {[%emt 0:00:01]} (29. Qd3 Rb3 30. Rb1) 29... Rb7 {[%emt 0:00:12] [#] ...Rxc3 is the strong threat.} 30. Rc1 {[%emt 0:00:14]} Rcb8 {[%emt 0:00:04] White must now prevent ...Rxb2+.} 31. Nd1 {[%emt 0:00:00]} Qb5 {[%emt 0:00:00] Threatens to win with ...Qd3.} 32. h5 {[%emt 0:00:04]} (32. Rc3 $142) 32... Qb3+ {[%emt 0:00:14]} 33. Ka1 {[%emt 0:00:01]} Qd3 {[%emt 0:00:01]} 34. Bxd4 {[%emt 0:00:05]} exd4 {[%emt 0:00:03]} ({Stronger than} 34... Qxd4 35. Qe2 $14) 35. Qf3 {[%emt 0:00:09]} (35. Rc6 $142 Rb3 (35... Qxe4 $2 36. Qf3 $19) 36. Rc2 (36. Qxf7+ Kh8)) 35... Qd2 $19 {[%emt 0:00:05]} 36. Rb1 {[%emt 0:00:03] White is weak on the dark squares} d3 {[%emt 0:00:11]} 37. Rf2 {[%emt 0:00:00]} Qa5 {[%emt 0:00:08]} ({Inferior is} 37... Bxb2+ 38. Rxb2 Qc1+ 39. Ka2 Rxb2+ 40. Nxb2 $11) (37... Qc2 $142 38. Rxc2 dxc2) 38. Qxd3 {[%emt 0:00:01]} Rb3 {[%emt 0:00:01] Weighted Error Value: White=1.13/Black=0.40.  Loses game:     	White=1     	---        Missed win:     	---       	Black=1      Mistake:       	White=5     	---        Inaccurate:     	White=2     	Black=1      OK:         	White=3     	Black=6      Best:        	White=2     	Black=4      Strong:       	White=1     	---} 0-1

[Event "American Cup Blitz 2024"]
[Site "Saint Louis"]
[Date "2024.03.21"]
[Round "3.3"]
[White "Kevlishvili, Robby"]
[Black "Naroditsky, Daniel"]
[Result "1/2-1/2"]
[ECO "B29"]
[WhiteElo "2524"]
[BlackElo "2619"]
[Annotator "TA"]
[PlyCount "112"]
[EventDate "2024.03.21"]
[EventType "swiss"]
[EventCountry "USA"]
[SourceTitle "playchess.com"]
[Source "ChessBase"]
[SourceQuality "1"]
[TimeControl "180+2"]

{[%evp 34,112,54,53,45,15,66,52,63,68,66,68,87,68,88,77,85,84,76,84,107,93,121,110,115,119,123,115,111,117,117,77,113,98,132,126,118,129,208,184,177,160,175,187,187,189,255,263,302,192,241,243,198,134,147,130,127,131,140,116,143,0,0,0,110,31,35,14,69,0,0,6,81,0,0,0,100,0,0,0,105]} 1. e4 {[%emt 0:00:02]} c5 {[%emt 0:00:02]} 2. Nf3 {[%emt 0:00:01]} Nf6 {[%emt 0:00:01]} 3. Nc3 {[%emt 0:00:04]} d5 {[%emt 0:00:01]} 4. exd5 {[%emt 0:00:02]} Nxd5 {[%emt 0:00:02]} 5. Bb5+ {[%emt 0:00:04]} Bd7 {[%emt 0:00:01]} 6. Ne5 {[%emt 0:00:05]} Nf6 {[%emt 0:00:03]} 7. Nxd7 {[%emt 0:00:03]} Nbxd7 {[%emt 0:00:01]} 8. d4 {[%emt 0:00:07] B29: Sicilian: 2 Nf3 Nf6 (Nimzowitsch Variation).} cxd4 {[%emt 0:00:13]} 9. Qxd4 {[%emt 0:00:02]} a6 {[%emt 0:00:03]} 10. Be2 {[%emt 0:00:02]} e6 {[%emt 0:00:05]} 11. Ne4 {[%emt 0:00:12]} Qc7 {[%emt 0:00:43]} 12. c3 {[%emt 0:00:13]} Be7 {[%emt 0:00:08]} 13. O-O {[%emt 0:00:05]} O-O {[%emt 0:00:06]} 14. Nxf6+ {[%emt 0:00:05]} Bxf6 {[%emt 0:00:06]} 15. Qb4 $146 {[%emt 0:00:17]} ({Predecessor:} 15. Qf4 Be5 16. Qh4 Nf6 17. Bd3 Rfd8 18. Bc2 Rac8 19. Bg5 h6 20. Bxf6 Bxf6 21. Qe4 {½-½ Paravyan,D (2592)-Le,T (2542) Titled Tuesday intern op 13th Sep Early blitz 2022 (6)}) 15... Be5 {[%emt 0:00:06]} 16. g3 {[%emt 0:00:04]} Nf6 {[%emt 0:00:11]} 17. Bf3 {[%emt 0:00:04]} Rab8 {[%emt 0:00:24]} 18. Be3 {[%emt 0:00:01]} b5 {[%emt 0:00:04]} 19. Rfd1 {[%emt 0:00:07]} Rfd8 {[%emt 0:00:02]} (19... Rfc8 $11) 20. Qc5 $14 {[%emt 0:00:11]} Nd5 {[%emt 0:00:25]} 21. Bxd5 {[%emt 0:00:18]} Qxc5 {[%emt 0:00:01]} 22. Bxc5 {[%emt 0:00:01]} exd5 {[%emt 0:00:01]} 23. Rd3 {[%emt 0:00:16]} Rbc8 {[%emt 0:00:15]} 24. b4 {[%emt 0:00:15]} f5 {[%emt 0:00:19]} 25. Re1 {[%emt 0:00:16]} Bf6 {[%emt 0:00:03]} 26. Re6 {[%emt 0:00:01]} a5 {[%emt 0:00:01]} 27. Rb6 {[%emt 0:00:18]} axb4 {[%emt 0:00:13]} 28. cxb4 {[%emt 0:00:01]} (28. Rxb5 $2 {loses.} bxc3 29. Bb4 d4 (29... c2 $2 30. Bd2 $19) 30. Rxf5 c2 $19) 28... Ra8 29. a3 {[%emt 0:00:03]} Bb2 {[%emt 0:00:01]} 30. Rxb5 {[%emt 0:00:12]} Rxa3 {[%emt 0:00:01]} 31. Rxa3 {[%emt 0:00:02]} Bxa3 {[%emt 0:00:01]} 32. Bd4 {[%emt 0:00:12]} Rd7 {[%emt 0:00:04]} 33. Kf1 {[%emt 0:00:01]} Kf7 {[%emt 0:00:09]} 34. Ke2 {[%emt 0:00:01]} Rc7 {[%emt 0:00:05]} 35. Kd3 {[%emt 0:00:04]} ({Resist} 35. Rxd5 Bxb4 36. Rxf5+ Kg8 $14) 35... Ke6 {[%emt 0:00:03]} (35... Rc4 $16) 36. Rb6+ {[%emt 0:00:02]} Kf7 {[%emt 0:00:02]} 37. b5 {[%emt 0:00:05]} Rc1 {[%emt 0:00:05]} 38. Rb7+ {[%emt 0:00:06]} Ke6 {[%emt 0:00:01]} 39. Bxg7 {[%emt 0:00:04]} (39. Rxg7 $2 {too greedy.} Rd1+ 40. Kc3 Rxd4 41. Rxh7 Rc4+ 42. Kd3 Be7 $19) 39... Rb1 {[%emt 0:00:04]} (39... Rd1+ {was necessary.} 40. Ke2 Rb1 41. Rb6+ Kd7 42. Rb7+ Ke6) 40. Bd4 $18 {[%emt 0:00:05]} Rb3+ {[%emt 0:00:00]} 41. Ke2 {[%emt 0:00:01]} Rb4 {[%emt 0:00:02]} (41... Bb2 $142 42. Rb6+ Kd7 43. Bxb2 Rxb2+ 44. Ke3 h5) 42. Rb6+ $18 {[%emt 0:00:04]} Kd7 {[%emt 0:00:02]} 43. Be3 {[%emt 0:00:04]} (43. Kd3 $18) 43... d4 $16 {[%emt 0:00:02]} 44. Bf4 {[%emt 0:00:00]} Rb3 {[%emt 0:00:02]} 45. Rb7+ {[%emt 0:00:02]} Ke6 {[%emt 0:00:01]} 46. Rxh7 {[%emt 0:00:04]} d3+ {[%emt 0:00:02]} 47. Kf1 {[%emt 0:00:04]} (47. Kf3 $16) 47... Rb1+ $11 {[%emt 0:00:03]} 48. Kg2 {[%emt 0:00:00]} Rxb5 {[%emt 0:00:03]} (48... Bc1 $11 {keeps the balance.} 49. Rh6+ Ke7 50. Rh7+ Ke8 51. Rh8+ Ke7 52. Rh7+ Ke8 53. Rh8+ Ke7 54. Rh7+) 49. Rh6+ {[%emt 0:00:01]} (49. Kf3 $16) 49... Kd5 $14 {[%emt 0:00:01]} 50. Rh8 {[%emt 0:00:02]} Bc5 {[%emt 0:00:04]} ({Better is} 50... Kc4 $11) 51. Rd8+ {[%emt 0:00:02]} (51. Kf3 $1 $14) 51... Kc4 $11 {[%emt 0:00:01]} 52. Rc8 {[%emt 0:00:04]} Kd5 {[%emt 0:00:03]} (52... Kb3 $1 $11 {remains equal.}) 53. Rd8+ {[%emt 0:00:01]} ({White should play} 53. Kf3 $16) 53... Kc4 $11 {[%emt 0:00:00]} 54. Rc8 {[%emt 0:00:01]} (54. h4 $11) 54... Kd5 $16 {[%emt 0:00:01]} 55. Rd8+ {[%emt 0:00:05]} Kc4 {[%emt 0:00:01]} 56. Rc8 {[%emt 0:00:01]} Kd5 {[%emt 0:00:05]} 1/2-1/2

[Event "American Cup Blitz 2024"]
[Site "Saint Louis"]
[Date "2024.03.21"]
[Round "3.4"]
[White "Caruana, Fabiano"]
[Black "Budisavljevic, Luka"]
[Result "1-0"]
[ECO "C10"]
[WhiteElo "2804"]
[BlackElo "2483"]
[Annotator "TA"]
[PlyCount "72"]
[EventDate "2024.03.21"]
[EventType "swiss"]
[EventCountry "USA"]
[SourceTitle "playchess.com"]
[Source "ChessBase"]
[SourceQuality "1"]
[TimeControl "180+2"]

{[%evp 14,72,17,7,0,0,0,6,18,14,15,19,16,6,70,71,122,104,127,68,68,65,55,22,27,27,27,14,30,26,28,1,5,0,0,0,0,0,97,100,289,222,199,195,648,639,617,577,904,754,1066,1067,1745,1256,29987,29988,29988,29989,29989,29990,29997]} 1. e4 {[%emt 0:00:01]} e6 {[%emt 0:00:01]} 2. d4 {[%emt 0:00:01]} d5 {[%emt 0:00:01]} 3. Nc3 {[%emt 0:00:02]} Nc6 {[%emt 0:00:02]} 4. Nf3 {[%emt 0:00:02]} Nf6 {[%emt 0:00:02]} 5. exd5 {[%emt 0:00:01]} exd5 {[%emt 0:00:01]} 6. Bb5 {[%emt 0:00:02]} Bb4 {[%emt 0:00:05]} 7. O-O {[%emt 0:00:02]} O-O {[%emt 0:00:04]} 8. Bg5 {[%emt 0:00:02][%cal Bc1g5,Bg5h4,Bh4g3][%mdl 32]} Bxc3 {[%emt 0:00:08]} 9. bxc3 {[%emt 0:00:02]} h6 {[%emt 0:00:06]} 10. Bh4 {[%emt 0:00:01]} g5 {[%emt 0:00:12] The position is equal.} 11. Bg3 {[%emt 0:00:02]} Ne4 {[%emt 0:00:01]} 12. Bxc6 {[%emt 0:00:16]} bxc6 {[%emt 0:00:02][%cal Bb7c6,Bc6c5,Bc5c4][%mdl 32]} 13. Ne5 {[%emt 0:00:01]} f5 {[%emt 0:00:49]} ({Black should try} 13... Bf5 $11) 14. f3 $14 {[%emt 0:00:30]} ({Of course not} 14. Nxc6 Qf6 15. Ne5 (15. Nb4 f4 $17) 15... f4 $11) 14... Nxg3 {[%emt 0:00:24]} (14... Nd6 $142) 15. hxg3 $16 {[%emt 0:00:02]} Qd6 {[%emt 0:00:13]} 16. Qd2 {[%emt 0:00:13]} (16. f4 $16 g4 17. Qd2) 16... f4 $14 {[%emt 0:00:08]} 17. g4 {[%emt 0:00:24]} c5 {[%emt 0:00:04]} 18. Rab1 {[%emt 0:00:13]} Ba6 {[%emt 0:00:14]} 19. Rfe1 {[%emt 0:00:02]} c4 {[%emt 0:00:05]} 20. Kh2 {[%emt 0:00:30]} Rab8 {[%emt 0:00:01]} 21. Rb4 {[%emt 0:00:09]} Kg7 {[%emt 0:00:14]} 22. Reb1 {[%emt 0:00:11]} Rb6 {[%emt 0:00:06]} 23. Qc1 {[%emt 0:00:12]} Bc8 {[%emt 0:00:11]} 24. a4 {[%emt 0:00:09][%cal Ba2a4,Ba4a5][%mdl 32]} Rxb4 {[%emt 0:00:15]} 25. Rxb4 {[%emt 0:00:07]} Rf6 {[%emt 0:00:14]} (25... h5 $11 {remains equal.}) 26. Rb8 $16 {[%emt 0:00:02]} Qd8 {[%emt 0:00:03] Loses the game.} (26... Rf8 $16) 27. a5 {[%emt 0:00:07] Black must now prevent Qa3.} Rf8 {[%emt 0:00:03]} 28. Qa3 {[%emt 0:00:03] [#] Hoping for Qb4.} Qf6 $2 {[%emt 0:00:04]} (28... Qd6 29. Qxd6 cxd6) 29. Qc5 $18 {[%emt 0:00:05][%csl LRa7,LRc7,LRd5]} Qd6 {[%emt 0:00:02]} 30. Qxa7 {[%emt 0:00:03]} h5 {[%emt 0:00:02]} 31. gxh5 {[%emt 0:00:04] Rb6 is the strong threat.} g4 {[%emt 0:00:01]} 32. fxg4 {[%emt 0:00:08]} f3 {[%emt 0:00:02]} 33. gxf3 {[%emt 0:00:01] [#] Strongly threatening Rb6.} Qf6 {[%emt 0:00:04]} 34. Qxc7+ {[%emt 0:00:01] White mates.} Kh6 {[%emt 0:00:01]} 35. Rxc8 {[%emt 0:00:07]} Qf4+ {[%emt 0:00:03]} 36. Kh3 {[%emt 0:00:02]} Qc1 {[%emt 0:00:03] Weighted Error Value: White=0.11 (very precise) /Black=0.57.  Loses game:     	---       	Black=1      Mistake:       	White=1     	Black=4      Inaccurate:     	White=2     	Black=1      OK:         	White=7     	Black=7      Best:        	White=2     	---} 1-0

[Event "American Cup Blitz 2024"]
[Site "Saint Louis"]
[Date "2024.03.21"]
[Round "3.5"]
[White "Theodorou, Nikolas"]
[Black "So, Wesley"]
[Result "1/2-1/2"]
[ECO "E08"]
[WhiteElo "2622"]
[BlackElo "2757"]
[Annotator "TA"]
[PlyCount "92"]
[EventDate "2024.03.21"]
[EventType "swiss"]
[EventCountry "USA"]
[SourceTitle "playchess.com"]
[Source "ChessBase"]
[SourceQuality "1"]
[TimeControl "180+2"]

{[%evp 31,92,64,103,112,110,118,103,102,109,112,108,20,20,-69,-71,-85,-79,-74,-72,-72,-64,-72,-85,-85,-95,-62,-56,-119,-91,-135,-12,-245,-235,-233,-253,-247,-243,-235,-228,-203,-216,-793,-777,-777,0,0,0,0,0,0,0,0,0,0,0,0,0,0,0,0,0,0,0]} 1. d4 {[%emt 0:00:01]} Nf6 {[%emt 0:00:01]} 2. c4 {[%emt 0:00:01]} e6 {[%emt 0:00:01]} 3. Nf3 {[%emt 0:00:01]} d5 {[%emt 0:00:02]} 4. g3 {[%emt 0:00:02]} Bb4+ {[%emt 0:00:08]} 5. Bd2 {[%emt 0:00:01]} Be7 {[%emt 0:00:01]} 6. Bg2 {[%emt 0:00:01]} O-O {[%emt 0:00:02]} 7. O-O {[%emt 0:00:02]} c6 {[%emt 0:00:01]} 8. Qc2 {[%emt 0:00:04]} Nbd7 {[%emt 0:00:02]} 9. Bf4 {[%emt 0:00:01]} a5 {[%emt 0:00:01]} 10. h4 {[%emt 0:00:06] E08: Closed Catalan: Main Line: 7 Qc2.} b6 {[%emt 0:00:12]} 11. Nbd2 {[%emt 0:00:09]} Nh5 {[%emt 0:00:08]} 12. Bg5 {[%emt 0:00:16]} Nhf6 {[%emt 0:00:24]} 13. Bf4 {[%emt 0:00:02]} Ba6 {[%emt 0:00:05]} 14. e4 $146 {[%emt 0:00:34]} ({Predecessor:} 14. Rfe1 c5 15. e4 cxd4 16. exd5 exd5 17. Nxd4 Rc8 18. Qd1 Bc5 19. Nb5 Bxb5 20. cxb5 Re8 21. Rxe8+ Qxe8 22. Nb3 {½-½ Ghazarian,K (2446)-Narayanan,S (2663) Fagernes Autumn op 2022 (5)}) 14... dxc4 {[%emt 0:00:28]} 15. Nxc4 {[%emt 0:00:19]} Rc8 {[%emt 0:00:13]} 16. Rfe1 {[%emt 0:00:24]} c5 {[%emt 0:00:02]} 17. d5 $1 {[%emt 0:00:01]} exd5 {[%emt 0:00:01]} 18. exd5 {[%emt 0:00:01]} Nxd5 {[%emt 0:00:02]} 19. Ng5 {[%emt 0:00:02]} Bxg5 {[%emt 0:00:24]} 20. Bxg5 {[%emt 0:00:07]} Nb4 {[%emt 0:00:01]} 21. Qf5 {[%emt 0:00:27]} (21. Qc3 $1 $16 f6 22. Bf4) 21... f6 $1 $11 {[%emt 0:00:18]} 22. Nd6 {[%emt 0:00:47]} ({White should try} 22. Be4 $11 g6 23. Qe6+ Kh8 24. Rad1) 22... fxg5 $15 {[%emt 0:00:02]} 23. Qe6+ {[%emt 0:00:01]} Kh8 {[%emt 0:00:01]} 24. Nf7+ {[%emt 0:00:01]} Rxf7 $1 {[%emt 0:00:01]} 25. Qxf7 {[%emt 0:00:01]} Nc2 $1 {[%emt 0:00:24]} (25... gxh4 26. Re7 Qf8 27. Rxd7 $18) 26. Re7 $1 {[%emt 0:00:07]} Qf8 {[%emt 0:00:01]} 27. Rd1 {[%emt 0:00:11]} Qxf7 {[%emt 0:00:06]} (27... Bc4 28. Qxc4 (28. Qxf8+ Nxf8 29. Bh3 Rb8 $19) 28... Qxe7 29. Qxc2 gxh4 30. Qf5 $15) 28. Rxf7 {[%emt 0:00:01]} Ne5 {[%emt 0:00:02]} 29. Ra7 {[%emt 0:00:02]} (29. Re7 $15 Ng6 (29... Be2 $2 30. Rd2 $18) 30. Ra7) 29... Be2 {[%emt 0:00:06]} 30. Rd6 {[%emt 0:00:05]} h6 {[%emt 0:00:10]} ({Better is} 30... gxh4 $17 {White must now prevent ...Ne1.} 31. Rxb6 Nd4 32. gxh4 Ndf3+ 33. Bxf3 Nxf3+ 34. Kg2 h5 (34... Nxh4+ $2 35. Kh3 $19)) 31. Rxb6 $2 {[%emt 0:00:03] [#]} (31. hxg5 $11 hxg5 32. Re7 (32. Rxb6 $2 Nf3+ 33. Bxf3 Bxf3 $19) 32... Nf3+ 33. Kh1) 31... Nf3+ $1 $19 {[%emt 0:00:03]} 32. Bxf3 {[%emt 0:00:01]} Bxf3 {[%emt 0:00:02]} 33. hxg5 {[%emt 0:00:03]} hxg5 {[%emt 0:00:01]} 34. g4 {[%emt 0:00:01]} (34. Rg6 $2 Rd8 35. g4 Rd1+ (35... Bxg4 36. Rxg5 Bf3 37. Kh2 $11) 36. Kh2 Nd4 (36... Bxg4 37. Rxg5 Bf3 38. Rg1 $14) 37. Raxg7 Bd5 $19 (37... Bxg4 38. Rg8+ Kh7 39. R6g7+ Kh6 40. Rg6+ Kh7 41. R8g7+ Kh8 42. Rg8+ Kh7 $11) (37... Rh1+ 38. Kg3 $17)) 34... Re8 {[%emt 0:00:07]} (34... Bxg4 35. Rg6 $15) 35. Rg6 {[%emt 0:00:01] [#]} Nd4 $1 {[%emt 0:00:09]} (35... Bxg4 36. Rxg5 Bf3 37. Kh2 $11) 36. Rgxg7 $2 {[%emt 0:00:03]} (36. Kh2 Ne6 (36... Bxg4 37. Rgxg7 Be6 38. Rgc7 $11) 37. Rxa5) 36... Re1+ $19 {[%emt 0:00:01]} (36... Bxg4 37. Rh7+ Kg8 38. Rag7+ Kf8 39. Rf7+ Kg8 40. Rfg7+ Kf8 41. Rf7+ Kg8 42. Rfg7+ $11) 37. Kh2 {[%emt 0:00:00]} Be4 $2 {[%emt 0:00:01]} (37... Bxg4 38. Rh7+ Kg8 39. f4 $11) ({Black should play} 37... Rh1+ $19 38. Kg3 Rg1+ 39. Kh2 Rg2+ (39... Rxg4 40. Rh7+ Kg8 41. Rhg7+ Kh8 42. Rh7+ Kg8 43. Rag7+ Kf8 44. Ra7 $11) 40. Kh3 Ne6 (40... Rxg4 41. Rh7+ Kg8 42. Rag7+ Kf8 43. Rf7+ Kg8 44. Rfg7+ Kf8 45. Rc7 $11) (40... Rxf2 $2 41. Rgd7 $18) 41. Rh7+ Kg8) 38. f3 $1 $11 {[%emt 0:00:03]} (38. Rac7 $2 {leads to mate.} Rh1+ 39. Kg3 Ne2#) 38... Nxf3+ {[%emt 0:00:10]} 39. Kg3 {[%emt 0:00:01]} Nd4 {[%emt 0:00:10]} 40. Rge7 {[%emt 0:00:02]} Re3+ {[%emt 0:00:04]} 41. Kf2 {[%emt 0:00:01]} Rf3+ {[%emt 0:00:01]} 42. Ke1 {[%emt 0:00:02]} Re3+ {[%emt 0:00:01]} 43. Kf2 {[%emt 0:00:01]} Re2+ {[%emt 0:00:03]} 44. Kg3 {[%emt 0:00:05]} Re3+ {[%emt 0:00:01]} 45. Kf2 {[%emt 0:00:01]} Rf3+ {[%emt 0:00:01]} 46. Ke1 {[%emt 0:00:01]} Re3+ {[%emt 0:00:01]} 1/2-1/2

[Event "American Cup Blitz 2024"]
[Site "Saint Louis"]
[Date "2024.03.21"]
[Round "3.6"]
[White "Hakobyan, Aram"]
[Black "Dominguez Perez, Leinier"]
[Result "0-1"]
[ECO "E28"]
[WhiteElo "2619"]
[BlackElo "2749"]
[Annotator "TA"]
[PlyCount "54"]
[EventDate "2024.03.21"]
[EventType "swiss"]
[EventCountry "USA"]
[SourceTitle "playchess.com"]
[Source "ChessBase"]
[SourceQuality "1"]
[TimeControl "180+2"]

{[%evp 11,54,-16,-8,-24,-18,-65,-61,-56,-52,-69,-58,-67,0,-7,31,18,47,29,57,25,31,46,43,-10,20,6,15,24,29,8,10,0,0,-67,-54,-62,0,-316,-300,-499,-503,-499,-500,-492,-490]} 1. d4 {[%emt 0:00:02]} Nf6 {[%emt 0:00:01]} 2. c4 {[%emt 0:00:01]} e6 {[%emt 0:00:01]} 3. Nc3 {[%emt 0:00:03]} Bb4 {[%emt 0:00:03]} 4. e3 {[%emt 0:00:02]} O-O {[%emt 0:00:02]} 5. a3 {[%emt 0:00:06]} Bxc3+ {[%emt 0:00:01]} 6. bxc3 {[%emt 0:00:01]} d6 {[%emt 0:00:01]} 7. Ne2 {[%emt 0:00:04]} c5 {[%emt 0:00:06]} 8. Ng3 {[%emt 0:00:02]} (8. d5 $11 {sieht stärker aus.}) 8... Nc6 $1 $15 {[%emt 0:00:03][%cal Bb8c6,Bc6a5,Ba5c4][%mdl 32]} 9. Be2 {[%emt 0:00:01] Schwarz steht etwas besser.} b6 {[%emt 0:00:04]} 10. O-O {[%emt 0:00:06]} Ba6 {[%emt 0:00:02]} 11. e4 {[%emt 0:00:02]} Ne8 {[%emt 0:00:30]} (11... cxd4 $15 12. cxd4 Na5) 12. f4 $11 {[%emt 0:00:18]} Na5 {[%emt 0:00:22]} 13. f5 {[%emt 0:00:02][%cal Of5f6]} exf5 {[%emt 0:00:14]} 14. Nxf5 {[%emt 0:00:09]} Kh8 {[%emt 0:00:10]} 15. Bf4 {[%emt 0:00:20]} Bxc4 {[%emt 0:00:12]} 16. Bxc4 {[%emt 0:00:08]} Nxc4 {[%emt 0:00:02]} 17. Qg4 {[%emt 0:00:17]} (17. Qd3 $14 d5 18. h3) 17... Qf6 {[%emt 0:00:20]} 18. Rae1 {[%emt 0:00:11]} cxd4 {[%emt 0:00:05]} 19. cxd4 {[%emt 0:00:02]} Qg6 {[%emt 0:00:06]} 20. Qe2 {[%emt 0:00:25]} d5 {[%emt 0:00:03]} 21. Bg3 {[%emt 0:00:13]} Ned6 {[%emt 0:00:08]} 22. Ne7 {[%emt 0:00:31]} (22. Nxd6 $11 Nxd6 23. exd5) 22... Qxe4 $15 {[%emt 0:00:08]} 23. Qf2 {[%emt 0:00:14]} Qd3 {[%emt 0:00:01]} ({Günstiger ist} 23... Qg4 $1 $15 24. Bxd6 Nxd6 25. Nxd5 Nb5) 24. Nxd5 $2 {[%emt 0:00:22][%mdl 8192] [#]} (24. Bxd6 $1 $11 {und Weiss ist OK.} Nxd6 25. Re3 Qxd4 26. Ng6+ Kg8 27. Nxf8 Rxf8 28. Re7) 24... Ne4 $19 {[%emt 0:00:02] Ein dynamisches Springerpaar.} ({Schwächer ist} 24... Qxa3 25. Qc2 Qa5 26. Bxd6 Nxd6 27. Re5 $17) 25. Qf3 {[%emt 0:00:07]} (25. Qf5 {war nötig.} Qxd4+ 26. Kh1) 25... Qxd4+ {[%emt 0:00:02] Schwarz steht klar auf Gewinn.} 26. Bf2 {[%emt 0:00:02]} Qxd5 {[%emt 0:00:02]} 27. Qxe4 {[%emt 0:00:01]} Qxe4 {[%emt 0:00:01] Gewichteter Fehlerwert: Weiß=0.48/Schwarz=0.17 (sehr präzise) .  Verlustzug:     	Weiß=1     	---        Fehler:       	Weiß=4     	Schwarz=2     Ungenau:       	Weiß=1     	Schwarz=4     OK:         	Weiß=4     	Schwarz=5     Bester:       	Weiß=1     	Schwarz=3     Stark:        	---       	Schwarz=1} 0-1